Cogmind - Beta 15 @@@ ROGUE MODE // 2025.05.19 @ 15:06:37 Player: YA-B01 Result: Destroyed by as-21059 with Assembled Heavy Rifle Performance ------------- Evolutions (0) 0 Regions Visited (4) 800 Robots Destroyed (38) 190 Value Destroyed (654) 654 Prototype IDs (4) 80 Alien Tech Used (0) 0 Bonus (21) 21 TOTAL SCORE: 1745 Bonus ------- Follower Combat Kills 21 Cogmind --------- Core Integrity 0/250 Matter 300/300 Energy 100/100 System Corruption 3% Temperature Cool (0) Movement Core (50) Location -9/Mines Parts ------- > --- POWER (1) -------- (None) > --- PROPULSION (2) --- (None) > --- UTILITY (2) ------ (None) > --- WEAPON (2) ------- (None) > --- INVENTORY (5) ---- Propulsion Shielding Bomb Drone Bay EM Pulse Gun Plasma Cutter Peak State ------------ > --- POWER ------------ Ion Engine > --- PROPULSION ------- Light Treads Light Treads > --- UTILITY ---------- Medium Storage Unit Light Armor Plating > --- WEAPON ----------- Plasma Cutter Maul > --- INVENTORY -------- Improved Terrain Scanner Seismic Detector Light Armor Plating Bomb Drone Bay EM Pulse Gun Medium Laser EMP Blaster Grenade Launcher [Rating: 11] Favorites ----------- Power Ion Engine Engine Ion Engine Propulsion Light Treads Treads Light Treads Utility Light Armor Plating Storage Medium Storage Unit Protection Light Armor Plating Weapon Assault Rifle Energy Gun Medium Laser Ballistic Gun Assault Rifle Launcher Grenade Launcher Special Weapon Plasma Cutter Impact Weapon Maul Build | -11 -10 -10 -10 -9 ------- Run | Yrd Mat Min Exi Min Slots Evolved . | . . . . . Power . | . . . . . Propulsion . | . . . . . Utility . | . . . . . Weapon . | . . . . . Parts Attached 19 | 6 4 3 4 2 Power 1 | 1 . . . . Engine 1 | 1 . . . . Core . | . . . . . Reactor . | . . . . . Propulsion 4 | 2 1 1 . . Treads 4 | 2 1 1 . . Leg . | . . . . . Wheel . | . . . . . Hover . | . . . . . Flight . | . . . . . Utility 6 | 1 2 1 1 1 Device . | . . . . . Storage 3 | 1 . 1 1 . Processor . | . . . . . Hackware . | . . . . . Protection 3 | . 2 . . 1 Artifact . | . . . . . Weapon 8 | 2 1 1 3 1 Energy Gun 2 | 1 . . 1 . Energy Cannon . | . . . . . Ballistic Gun 1 | 1 . . . . Ballistic Cannon . | . . . . . Launcher 3 | . 1 1 . 1 Special Weapon 1 | . . . 1 . Impact Weapon 1 | . . . 1 . Slashing Weapon . | . . . . . Piercing Weapon . | . . . . . Special Melee Weapon . | . . . . . Unidentified Prototypes . | . . . . . Parts Lost 7 | . . . . 7 Power 1 | . . . . 1 Propulsion 2 | . . . . 2 Utility 2 | . . . . 2 Weapon 2 | . . . . 2 Highest Loss Streak 7 | . . . . 7 To Critical Strikes . | . . . . . Average Backups 8 | 2 7 8 8 9 Power . | . . . . . Propulsion . | . . . . . Utility 3 | . 3 3 4 5 Weapon 3 | . 3 4 3 3 Tool/Special . | . . . . . Unused Backups 8 | . 4 . . 4 Power 1 | . 1 . . . Propulsion . | . . . . . Utility 6 | . 2 . . 4 Weapon 1 | . 1 . . . Tool/Special . | . . . . . Average Slot Usage (%) 94 | . 92 100 88 78 Engine 13 | . 14 14 14 10 Treads 27 | . 27 28 28 21 Storage 14 | . 14 14 14 14 Protection 11 | . 7 14 14 12 Energy Gun 9 | . 13 10 2 1 Ballistic Gun 11 | . 13 14 1 . Launcher 1 | . . 3 . 5 Impact Weapon 2 | . . . 12 14 Peak Build Rating 11 | 7 8 9 11 10 Average Rating 8 | 5 7 8 9 8 On Entrance 6 | . 6 8 9 9 Naked Turns 2 | . . . . 2 Heaviest Build 54 | 14 17 23 51 54 Greatest Support 40 | 40 40 40 40 40 Greatest Overweight (x) 2 | . . . 1 2 Average Overweight (x) . | . . . . 1 Largest Inventory Capacity 20 | 8 8 10 20 20 Average Capacity 9 | 7 8 9 11 19 Most Carried 12 | 7 8 10 11 12 Average Carried 8 | 2 7 9 9 10 Final Capacity 20 | 8 8 10 20 5 Final Carried 11 | 5 8 10 11 5 Class Distribution -------------------- 100% | Mutant Dominant Class ---------------- Mutant | -10/Materials Mutant | -10/Mines Mutant | -10/Exiles Mutant | -9/Mines Resources | -11 -10 -10 -10 -9 ----------- Run | Yrd Mat Min Exi Min Matter Collected 784 | 281 247 172 61 23 Remotely . | . . . . . Salvage Created 1057 | 139 632 266 . 20 Parts 74 | 14 47 13 . . Haulers Intercepted 1 | . 1 . . . Recyclers Shooed 1 | . 1 . . . Parts Field Recycled . | . . . . . Retrieved Matter . | . . . . . Parts Self-Destructed . | . . . . . Prevented . | . . . . . Kills | -11 -10 -10 -10 -9 ------- Run | Yrd Mat Min Exi Min Combat Hostiles Destroyed 26 | . 17 7 . 2 Melee 2 | . . . . 2 Guns 16 | . 14 2 . . AOE 7 | . 2 5 . . Classes Destroyed 9 | 2 6 . . 1 Worker 3 | . 2 1 . . Tunneler 5 | 4 . 1 . . Hauler 1 | . 1 . . . Recycler 3 | 1 1 1 . . Operator 1 | . 1 . . . Watcher 1 | . 1 . . . Swarmer 12 | . 9 3 . . Grunt 12 | . 8 4 . . Assembled 2 | . . . . 2 Best Kill Streak 7 | 5 4 7 . 2 Combat Bots Only 5 | . 3 5 . 2 Max Kills in Single Turn 3 | 1 2 3 . 1 Gunslinging . | . . . . . Exploded 2 | . 2 2 . . Melee 1 | . . . . 1 Uniques/NPCs Destroyed . | . . . . . Combat | -11 -10 -10 -10 -9 -------- Run | Yrd Mat Min Exi Min Hostile Shots Fired 114 | . 53 22 . 39 Missed 34 | . 15 9 . 10 Hits 80 | . 38 13 . 29 Melee 6 | . . . . 6 Projectile 74 | . 38 13 . 23 AOE 13 | . . . . 13 Damage Taken 1366 | . 364 185 . 817 Core 256 | . 39 39 . 178 Absorbed by Shields . | . . . . . Redirected to Shielding 2 | . 2 . . . Regen/Repaired (Parts) 188 | . 188 . . . Core Remaining (%) 100 | 100 . . . . Volleys Fired 99 | 10 55 17 15 2 Largest 2 | 2 2 2 1 1 Hottest 70 | 70 70 70 40 50 Shots Fired 175 | 20 109 29 15 2 Gun 168 | 20 107 25 15 1 Cannon . | . . . . . Launcher 7 | . 2 4 . 1 Special . | . . . . . Kinetic 78 | 10 53 15 . . Thermal 75 | 10 54 10 . 1 Explosive 6 | . 2 4 . . Electromagnetic 16 | . . . 15 1 Robot Hit Streak 10 | 7 10 7 . . Robot Miss Streak 4 | 1 3 4 . 1 Penetration Max . | . . . . . Secondary Targets 1 | . 1 . . . Max Gunslinging Chain 1 | . 1 . . . Shots Hit Robots 103 | 15 69 15 . 4 Core Hits 55 | 6 34 14 . 1 Critical Kills . | . . . . . Critical Parts Destroyed 1 | . . . . 1 Critical Strikes 8 | 1 5 1 . 1 Burn 7 | 1 5 1 . . Smash 1 | . . . . 1 Melee Attacks 6 | . . . . 6 Impact 6 | . . . . 6 Slashing . | . . . . . Piercing . | . . . . . Sneak Attacks . | . . . . . Combat Hostiles . | . . . . . Follow-up Attacks . | . . . . . Damage Inflicted 1981 | 210 998 601 . 172 Guns 1237 | 204 876 157 . . Cannons . | . . . . . Explosions 516 | . 117 399 . . Melee 172 | . . . . 172 Ramming 56 | 6 5 45 . . Kinetic 563 | 90 390 83 . . Thermal 674 | 114 486 74 . . Explosive 516 | . 117 399 . . Electromagnetic . | . . . . . Impact 172 | . . . . 172 Slashing . | . . . . . Piercing . | . . . . . Highest Corruption 3 | . 3 3 3 3 Average Corruption 2 | . 1 3 3 3 Corruption Purged . | . . . . . Corruption Blocked . | . . . . . Effects 40 | . 8 21 9 2 Message Errors 9 | . 2 3 3 1 Matter Fused 11 | . 2 7 1 1 Heat Flow Errors 10 | . 1 9 . . Energy Discharges 2 | . . 1 1 . Parts Fused 1 | . 1 . . . Data Loss (minor) 3 | . . 1 2 . Data Loss (major) 1 | . . . 1 . Misfires 1 | . 1 . . . Alerts 2 | . 1 . 1 . Overload Shots . | . . . . . Overflow Damage 93 | . . 27 . 66 Projectiles . | . . . . . Explosions 27 | . . 27 . . Melee 66 | . . . . 66 Knockbacks . | . . . . . Impact . | . . . . . Kinetic . | . . . . . Secondary . | . . . . . Self-Inflicted Damage 9 | . . 9 . . Shots 1 | . . 1 . . Rammed 14 | 3 3 8 . . Targets Rammed 14 | 3 3 8 . . Kicked . | . . . . . Crushed . | . . . . . Highest Temperature 291 | 63 177 291 90 . Average Temperature 67 | 25 40 116 46 . Received Heat Transfer 210 | . 114 96 . . Siege Activations . | . . . . . Martial Activations . | . . . . . Shielding Activations . | . . . . . Robots Disrupted . | . . . . . Combat Hostiles . | . . . . . Robots Corrupted . | . . . . . Combat Hostiles . | . . . . . Parts Fried . | . . . . . Impact Corruptions 2 | . . . . 2 Robots Melted 1 | . 1 . . . Combat Hostiles 1 | . 1 . . . Parts Melted 7 | . 5 2 . . Heat Transferred 2516 | 407 1813 296 . . Parts Sabotaged . | . . . . . Parts Stolen . | . . . . . Parts Stripped . | . . . . . Power Chain Reactions . | . . . . . Alert | -11 -10 -10 -10 -9 ------- Run | Yrd Mat Min Exi Min Maximum Alert Level . | . . . . . Low Security (%) 100 | 100 100 100 . 100 Level 1 . | . . . . . Level 2 . | . . . . . Level 3 . | . . . . . Level 4 . | . . . . . Level 5 . | . . . . . High Security . | . . . . . Max Security . | . . . . . Peak Influence 147 | 15 139 147 . . Initial 31 | . . 31 . . Average 51 | 2 62 48 . . Influence Increases 864 | 25 541 298 . . Destroy 0b10 Robot/C 540 | . 340 200 . . Destroy 0b10 Robot/NC 70 | 25 30 15 . . Destroy Leader 124 | . 84 40 . . Allied During Kill 4 | . . 4 . . Successful Hack 7 | . 7 . . . Select Force Hacks 60 | . 60 . . . Disable Machine 15 | . . 15 . . Destroy Structure 44 | . 20 24 . . Influence Decreases 864 | 25 460 318 61 . Entered New Map 111 | . . 50 61 . Time Decay 753 | 25 460 268 . . Squads Dispatched 6 | . 6 . . . Investigation 4 | . 4 . . . Extermination . | . . . . . Reinforcement 2 | . 2 . . . Assault . | . . . . . Garrison . | . . . . . Intercept . | . . . . . Searches Triggered . | . . . . . Construction Impeded . | . . . . . Haulers Reinforced . | . . . . . Active Scanning Responses . | . . . . . Cargo Convoy Interrupts . | . . . . . Stealth | -11 -10 -10 -10 -9 --------- Run | Yrd Mat Min Exi Min Distress Signals 1 | . 1 . . . Communications Jammed . | . . . . . Distress Signals . | . . . . . Times Spotted 44 | . 30 7 . 7 Peak Tracking Total 5 | . 4 5 . 5 Tactical Retreats . | . . . . . Traps | -11 -10 -10 -10 -9 ------- Run | Yrd Mat Min Exi Min Traps Triggered 2 | . 2 . . . Indirectly . | . . . . . Trap Hack Attempts . | . . . . . Triggered . | . . . . . Disarmed . | . . . . . Reprogrammed . | . . . . . Reused . | . . . . . Traps Extracted . | . . . . . Installed . | . . . . . Triggered . | . . . . . Machines | -11 -10 -10 -10 -9 ---------- Run | Yrd Mat Min Exi Min Machines Disabled 1 | . . 1 . . Max in Single Turn 1 | . . 1 . . Machines Repaired . | . . . . . Machines Dismantled . | . . . . . Machines Sabotaged . | . . . . . Overloaded Fab Kills . | . . . . . Hacking | -11 -10 -10 -10 -9 --------- Run | Yrd Mat Min Exi Min Machines Accessed 9 | . 8 1 . . Terminals 5 | . 5 . . . Fabricators . | . . . . . Repair Stations 1 | . 1 . . . Recycling Units 2 | . 2 . . . Scanalyzers . | . . . . . Garrison Access . | . . . . . Total Hacks 27 | . 26 1 . . Successful 14 | . 13 1 . . Failed 13 | . 13 . . . Catastrophic 1 | . 1 . . . Database Lockouts . | . . . . . Manual 10 | . 10 . . . Terminals 14 | . 14 . . . Fabricators . | . . . . . Repair Stations 8 | . 8 . . . Recycling Units 4 | . 4 . . . Scanalyzers . | . . . . . Garrison Access . | . . . . . Terminal Hacks 6 | . 5 1 . . Record 1 | . 1 . . . Prototype ID Bank 3 | . 3 . . . Open Door 1 | . . 1 . . Branch Access Points 1 | . 1 . . . Fabricator Hacks . | . . . . . Repair Station Hacks 5 | . 5 . . . Scan Component 3 | . 3 . . . Repair 2 | . 2 . . . Recycling Unit Hacks . | . . . . . Scanalyzer . | . . . . . Garrison Access Hacks . | . . . . . Unauthorized Hacks 3 | . 3 . . . Terminals 1 | . 1 . . . Search 1 | . 1 . . . Fabricators . | . . . . . Repair Stations . | . . . . . Recycling Units 2 | . 2 . . . Tunnel 2 | . 2 . . . Scanalyzers . | . . . . . Garrison Access . | . . . . . Data Cores Recovered . | . . . . . Used . | . . . . . Hacking Detections 7 | . 7 . . . Full Trace Events 2 | . 2 . . . Feedback Events . | . . . . . Feedback Blocked . | . . . . . Robot Schematics Acquired . | . . . . . Robots Built . | . . . . . Authchips . | . . . . . Time . | . . . . . Total Robot Build Rating . | . . . . . Part Schematics Acquired . | . . . . . Parts Built . | . . . . . Authchips . | . . . . . Time . | . . . . . Total Part Build Rating . | . . . . . Parts Repaired 2 | . 2 . . . Time 62 | . 62 . . . Parts Recycled . | . . . . . Recycled Matter . | . . . . . Retrieved Matter . | . . . . . Retrieved Components . | . . . . . Parts Scanalyzed . | . . . . . Part Schematics Acquired . | . . . . . Parts Damaged . | . . . . . Bothacking | -11 -10 -10 -10 -9 ------------ Run | Yrd Mat Min Exi Min Used RIF Installer . | . . . . . Robots Hacked . | . . . . . Non-combat . | . . . . . Combat . | . . . . . Robot Hacks Applied . | . . . . . Relay Couplers Released . | . . . . . Fabnet Peak Effective % . | . . . . . Robots Rewired . | . . . . . Allies Hacked . | . . . . . Hacks Repelled . | . . . . . Allies | -11 -10 -10 -10 -9 -------- Run | Yrd Mat Min Exi Min Total Allies 1 | . . 1 . . Largest Group 1 | . . 1 . . Highest-Rated Group 31 | . . 31 . . Highest-Rated Ally 31 | . . 31 . . Total Orders . | . . . . . Ally Attacks 5 | . . 5 . . Total Damage 64 | . . 64 . . Kills 3 | . . 3 . . Allies Corrupted . | . . . . . Allies Melted . | . . . . . Intel | -11 -10 -10 -10 -9 ------- Run | Yrd Mat Min Exi Min Active Infowar (turns) . | . . . . . Robot Analysis Total . | . . . . . Derelict Logs Recovered 2 | . . 1 . 1 Drone Launches . | . . . . . Drone Recoveries . | . . . . . Exploration | -11 -10 -10 -10 -9 ------------- Run | Yrd Mat Min Exi Min Turns Passed 4051 | 125 1667 1505 629 125 Spaces Moved 2114 | 48 778 899 347 42 Core 8 | 4 . . . 4 Treads 2106 | 44 778 899 347 38 Legs . | . . . . . Wheels . | . . . . . Hover . | . . . . . Flight . | . . . . . Fastest Speed 50 | 50 160 160 160 50 Average Speed 162 | 150 160 160 169 231 Slowest Speed 320 | 160 160 160 240 320 Overloaded Moves . | . . . . . Propulsion Burnouts . | . . . . . Robots Hopped . | . . . . . Potential Cave-ins . | . . . . . Cave-ins Triggered . | . . . . . Exploration Rate (%) 57 | 4 99 98 75 11 Regions Visited 4 Branch Regions 3 Pre-discovered Areas 2 | . 2 . . . Known Exits Taken 1 | . 1 . . . Unknown Exits Taken 3 | 1 . 1 1 . Scrap Searched 3 | . . 2 . 1 Spaces Dug . | . . . . . Terrain Destroyed 47 | . 17 30 . . Melee . | . . . . . Projectile . | . . . . . AOE 47 | . 17 30 . . Terrain Rammed . | . . . . . Walls Destroyed . | . . . . . Machines Disabled . | . . . . . Actions | -11 -10 -10 -10 -9 --------- Run | Yrd Mat Min Exi Min Total 2529 | 77 1091 932 374 55 Wait 237 | 2 233 2 . . Move 2110 | 47 777 898 346 42 Hop . | . . . . . Pick Up 21 | 7 9 1 3 1 Fast Attach 10 | 6 4 . . . Attach 6 | . . . 2 4 Detach 2 | . . . 2 . Swap 9 | . 3 4 2 . Drop 14 | 2 7 2 3 . Fire 99 | 10 55 17 15 2 Melee 6 | . . . . 6 Ram . | . . . . . Kick . | . . . . . Crush 14 | 3 3 8 . . Escape Stasis . | . . . . . Rewire . | . . . . . Trap . | . . . . . Miscellaneous 1 | . . . 1 . Route ------- -11/Scrapyard -10/Materials (discovered 5 exits: [*Mat x3] / *Min / [*Sub]) -10/Mines (discovered 4 exits: [*Mat x2] / *Exi / [*Sub]) -10/Exiles -9/Mines History --------- Turn | Location | Event 8 | -11/Scrapyard | Discovered new exit (range 15) 126 | -11/Scrapyard | Entered Materials 127 | -10/Materials | Met a group of wandering Federalists 250 | -10/Materials | Discovered new exit (range 8) 318 | -10/Materials | Build established: Mutant 360 | -10/Materials | Discovered new exit (range 14) 478 | -10/Materials | Discovered new exit (range 12) 516 | -10/Materials | Identified exit to Mines 716 | -10/Materials | Discovered new exit (range 10) 980 | -10/Materials | Discovered new exit (range 14) 1546 | -10/Materials | Repaired Broken Assault Rifle 1573 | -10/Materials | Repaired Lgt. Treads 1793 | -10/Materials | Entered Mines 2038 | -10/Mines | Discovered new exit (range 15) 2092 | -10/Mines | Found the Drone Emporium 2101 | -10/Mines | Found Prototype Device 2565 | -10/Mines | Learned Materials interactive machine intel 2738 | -10/Mines | Found a Scrap Suit stashed away for nefarious purposes 2861 | -10/Mines | Received a Mining Laser from a helpful Derelict 2949 | -10/Mines | Discovered new exit (range 3) 3236 | -10/Mines | Discovered new exit (range 6) 3290 | -10/Mines | Deemed a non-threat by the Exiles lab entrance 3292 | -10/Mines | Discovered new exit (range 5) 3298 | -10/Mines | Entered Exiles 3337 | -10/Exiles | Met 8R-AWN 3367 | -10/Exiles | Met EX-HEX 3418 | -10/Exiles | Met EX-BIN 3577 | -10/Exiles | Met EX-DEC 3630 | -10/Exiles | Visited The Gauntlet 3898 | -10/Exiles | Discovered new exit (range 14) 3927 | -10/Exiles | Entered Mines 3944 | -9/Mines | Learned Materials trap positions 3981 | -9/Mines | Assembled infested the area 4044 | -9/Mines | Core integrity fell below 50% 4049 | -9/Mines | Core integrity fell below 20% 4050 | -9/Mines | Released all parts (3) 4052 | -9/Mines | Destroyed by as-21059 with Assembled Heavy Rifle Last Messages --------------- 04027_ The unstable cave ceiling collapses. 04027_ U-05 Engineer lays Concrete. 04029_ The unstable cave ceiling collapses. 04038_ Lgt. Armor Plating destroyed. 04038_ as-99182 destroyed. 04038_ Lgt. Treads destroyed. 04040_ EMP Blaster destroyed. 04044_ Knocked back. 04045_ Acquired 14 matter. 04046_ The unstable cave ceiling collapses. 04047_ as-47612 suffers critical hit (Smash). 04047_ Destroyed Asb. Maul. 04047_ Destroyed Asb. Hover Unit. 04047_ as-47612 system corrupted by crushing effect. 04047_ as-47612 destroyed. 04049_ The unstable cave ceiling collapses. 04050_ Released Hcp. Storage Unit. 04050_ Released Maul. 04050_ Released Med. Laser. Map ----- +----------------------------------------------------+ | ?????????????????????????????????????????????????? | | ?????????????????????????????????????????????????? | | ?????????????????????????????????????????????????? | | ??? ?????????????????????????????????????????????? | | ?????????????????????????????????????????????? | | ?????????????????????????????????????????????? | | ????????????????????????????????????????????? | | ????????????????????????????????????????????? | | ????????????????????????????????????????????? | | #???????????????????????????????????????????? | | ? #??????????????????????????????????????????? | | ??# ??????????????????????????????????????????? | | ???# ??????????????????????????????????????????? | | ???# ##????????????????????????????????????????? | | ???# ##???????????????????????????????????????? | | ???# ###?????????????????????????????????????? | | ???# # #????????????????????????????????????? | | ???# #####???????????????????????????????? | | ???# # # ###?????????????????????????????? | | # ##????????????????????????????? | | ### # # ##???????????????????????????? | | ??# # ### # #???????????????????????????? | | ??# ## # a #???########????????????????? | | ??# #??# a # [##### ##???????????????? | | ??# ???# # %!! #???????????????? | | ?? ???# # %!a!/ @ #???????????????? | | ?###????##### ###### #???????????????? | | ???????????## #????## #??????????????? | | ????????????## |% #??????# #??????????????? | | ?????????????# = ??????? ##??????????????? | | ?????????????### ??????? ##???????????????? | | ???????????????### ###??????## #????????????????? | | ?????????????????####?????????? #????????????????? | | ????????????????????????????????#????????????????? | | ?????????????????????????????????????????????????? | | ?????????????????????????????????????????????????? | | ?????????????????????????????????????????????????? | | ?????????????????????????????????????????????????? | | ?????????????????????????????????????????????????? | | ?????????????????????????????????????????????????? | | ?????????????????????????????????????????????????? | | | | | | | | | | | | | | | | | | | +----------------------------------------------------+ Best States ------------- Heat Dissipation 25 Energy Generation 10 Energy Capacity 250 Matter Stores 300 Matter Capacity 300 Sight Range 16 Terrain Scan Density 10 Armor Coverage 150 Core Shielding 20 Evasion (%) 40 Recoil Reduction 2 Item Schematics ----------------- None Robot Schematics ------------------ None Fabricated ------------ Nothing Repaired ---------- Assault Rifle | 2% | -10/Materials | Broken Lgt. Treads | 35% | -10/Materials Alien Tech Used ----------------- None Achievements -------------- None Challenges ------------ None Game ------ Seed ScanMasterCycler Manual? 0 Play Time 00:18:48 Cumulative 225.8 hours Start 2025.05.19 @ 14:30:12 End 2025.05.19 @ 15:06:37 Sessions 3 Manual Loads 0 Difficulty Rogue Special Mode None Game No. 126 Rogue 123 Adventurer 3 Explorer 0 Win Type - Total 4 Types 4/0/0/0/0/0/0/0/0/0 Lore% 63 Gallery% 64 Achievement% 55 Wizard Run 0 Options --------- Layout 1 ASCII 0 Keyboard 1 Movement Vi Keybinds 0 Fullscreen 1 Font 28/SmallcapsGlow Map View 50x43 Zoom Use 0% Tactical HUD 1 Map Filters NONE Filters NONE Steam X RUN: 3889440e-77fc-4dc7-b081-48d16e4abf82